Workbook

Sheet Table 1
B1: Table 1. Performance Indicators: The tables below presents a set of key performance indicators (KPIs) for ICE activities. These KPIs are divided into three classes in Tables 1a, 1b and 1c.
B2: Notes: Please leave the base line as zero, fill in the performance indicators during implementation. Numbers are not cumulative in the respective quarters. Evidence must be submitted to OMST in order to substantiate the claim that the results have been achieved. For instance, evidence of a publication would be a copy of the published journal.
B3: Table 1a | D3: 2018 | H3: 2019 | L3: 2020 | P3: Total
A4: No | B4: Outcome Indicators: These are indicators which mark the completion of a research activity and are (mainly) in the control of the research team. For instance, a published working paper can be an outcome. A research paper completed and submitted to a reputed journal for publication can be an outcome. A book or monograph completed and submitted to a reputed publisher for publication can be an outcome. | C4: Baseline | D4: Q1 | E4: Q2 | F4: Q3 | G4: Q4 | H4: Q1 | I4: Q2 | J4: Q3 | K4: Q4 | L4: Q1 | M4: Q2 | N4: Q3 | O4: Q4
A5: 1 | B5: Number of working papers submitted | C5: 0 | P5: =SUM(D5:O5) -> 0
A6: 2 | B6: Number of communications (abstract) submitted | C6: 0 | P6: =SUM(D6:O6) -> 0
A7: 3 | B7: Number of papers submitted to national conferences/symposia | C7: 0 | P7: 0
A8: 4 | B8: Number of papers submitted to international conferences/symposia | C8: 0 | P8: 0
A9: 5 | B9: Number of research publications submitted to peer reviewed national journals | C9: 0 | P9: 0
A10: 6 | B10: Number of research publications submitted to peer reviewed internationally indexed journals | C10: 0 | P10: 0
A11: 7 | B11: Number of research publications as books or monographs submitted to reputed national publishers | C11: 0 | P11: 0
A12: 8 | B12: Number of research publications as books or monographs submitted to reputed international publishers | C12: 0 | P12: 0
A13: 9 | B13: Number of national patents submitted | C13: 0 | P13: 0
A14: 10 | B14: Number of international patents submitted | C14: 0 | P14: 0
A15: 11 | B15: Number of industrial designs submitted | C15: 0 | P15: 0
A16: 12 | B16: Number of national copyrights applications submitted (e.g. software) | C16: 0 | P16: 0
A17: 13 | B17: Number of international copyright applications submitted (e.g. software) | C17: 0 | P17: 0
A18: 14 | B18: Number of national trademarks submitted | C18: 0 | P18: 0
A19: 15 | B19: Number of international trademarks submitted | C19: 0 | P19: 0
A20: 16 | B20: Number of Patent Cooperation Treaty (PCT) submissions | C20: 0 | P20: =SUM(D20:O20) -> 0
A21: 17 | B21: Number of license agreements under negotiation | C21: 0 | P21: 0
A22: 18 | B22: Number of assignments of IP under negotiation | C22: 0 | P22: 0
A23: 19 | B23: Number of products ready for commercialization | C23: 0 | P23: 0
A24: 20 | B24: Number of industry-university linkages (MOU or agreements) for research commercialization under negotiation | C24: 0 | P24: 0
B26: Notes: Please fill this table upon completion of the grant
B27: Table 1b | D27: 2018 | H27: 2019 | L27: 2020 | P27: Total
A28: No | B28: Final results indicators: These are indicators which mark the full completion of a research activity, but which contain elements that are outside the control of the research team. For instance, the publication of a research paper in a reputed journal is a final result. The publication of a book or monograph by a reputed publisher is also a final result. This is because papers, books and monographs, once submitted for publication, can take a considerable period of time, based on the feedback of referees and editors, before they are published. This feedback and time are outside the control of the research teams. | C28: Baseline | D28: Q1 | E28: Q2 | F28: Q3 | G28: Q4 | H28: Q1 | I28: Q2 | J28: Q3 | K28: Q4 | L28: Q1 | M28: Q2 | N28: Q3 | O28: Q4
A29: 1 | B29: Number of working papers published | C29: 0 | P29: =SUM(D29:O29) -> 0
A30: 2 | B30: Number of communications (abstract) accepted | C30: 0 | P30: =SUM(D30:O30) -> 0
A31: 3 | B31: Number of papers presented in national conferences/symposia | C31: 0 | P31: 0
A32: 4 | B32: Number of papers presented in international conferences/symposia | C32: 0 | P32: 0
A33: 5 | B33: Number of research publications published in peer reviewed national journals | C33: 0 | P33: 0
A34: 6 | B34: Number of research publications published in peer reviewed internationally indexed journals | C34: 0 | P34: 0
A35: 7 | B35: Number of research publications as books or monographs published by reputed national publishers | C35: 0 | P35: 0
A36: 8 | B36: Number of research publications as books or monographs published by reputed international publishers | C36: 0 | P36: 0
A37: 9 | B37: Number of national patents accepted | C37: 0 | P37: 0
A38: 10 | B38: Number of international patents accepted | C38: 0 | P38: 0
A39: 11 | B39: Number of industrial designs accepted | C39: 0 | P39: 0
A40: 12 | B40: Number of national copyrights applications accepted (e.g. software) | C40: 0 | P40: 0
A41: 13 | B41: Number of international copyright applications accepted (e.g. software) | C41: 0 | P41: 0
A42: 14 | B42: Number of national trademarks accepted | C42: 0 | P42: 0
A43: 15 | B43: Number of international trademarks accepted | C43: 0 | P43: 0
A44: 16 | B44: Number of Patent Cooperation Treaty (PCT) accepted | C44: 0 | P44: 0
A45: 17 | B45: Number of license agreements signed | C45: 0 | P45: 0
A46: 18 | B46: Number of assignments of IP signed | C46: 0 | P46: 0
A47: 19 | B47: Number of products in the market | C47: 0 | P47: 0
A48: 20 | B48: Number of industry-university linkages (MOU or agreements) for research commercialization | C48: 0 | P48: 0
B51: Table 1c | D51: 2018 | H51: 2019 | L51: 2020 | P51: Total
A52: No | B52: Downstream benefits: These are spin-off benefits from the research activity. For instance, if a research assistant were to obtain a Masters’ Degree that would be a spin-off benefit. If a research activity were to influence development policy in a particular area, that would also be a spin-off benefit. Note that spin-off benefits can be extremely important. | C52: Baseline | D52: Q1 | E52: Q2 | F52: Q3 | G52: Q4 | H52: Q1 | I52: Q2 | J52: Q3 | K52: Q4 | L52: Q1 | M52: Q2 | N52: Q3 | O52: Q4
A53: 1 | B53: Research citations | C53: 0 | P53: =SUM(D53:O53) -> 0
A54: 2 | B54: Number of M. Phils | C54: 0 | P54: =SUM(D54:O54) -> 0
A55: 3 | B55: Number of Masters graduates | C55: 0 | P55: 0
A56: 4 | B56: Number of products in the market | C56: 0 | P56: 0
A57: 5 | B57: Amount of royalty payments | C57: 0 | P57: 0
A58: 6 | B58: Technology transfer fee | C58: 0 | P58: 0
A59: 7 | B59: Number of programs conducted to disseminate research output to the relevant stakeholders in the country | C59: 0 | P59: 0
A60: 8 | B60: Policies improved due to research dissemination | C60: 0 | P60: 0
A61: 9 | B61: Increase in the number of academics undertaking regular research activities | C61: 0 | P61: 0
A62: 10 | B62: Increase in the number of academics gaining promotions due to research activities | C62: 0 | P62: 0
A63: 11 | B63: Number of policy studies / research requested | C63: 0 | P63: 0
A64: 12 | C64: 0 | P64: 0
A65: 13 | C65: 0 | P65: 0
A66: 14 | C66: 0 | P66: 0
A67: 15 | C67: 0 | P67: 0
A68: 16 | C68: 0 | P68: 0
A69: 17 | C69: 0 | P69: 0
A70: 18 | C70: 0 | P70: 0
A71: 19 | C71: 0 | P71: 0
A72: 20 | C72: 0 | P72: 0

Sheet Table 2
A1: Table 2. Overall Action Plan
A3: Column1 | B3: Column2 | C3: Column3 | D3: Column4 | E3: Column5 | F3: Column6 | G3: Column7 | H3: Column8 | I3: Column9 | J3: Column10 | K3: Column11 | L3: Column12 | M3: Column13 | N3: Column14
A4: Action | B4: Sub-Action | C4: 2018 | G4: 2019 | K4: 2020
C5: Q1 | D5: Q2 | E5: Q3 | F5: Q4 | G5: Q1 | H5: Q2 | I5: Q3 | J5: Q4 | K5: Q1 | L5: Q2 | M5: Q3 | N5: Q4
A6: Action 1 | B6: 1.1 (Target) | C6: 1
B7: 1.1 (Actual) | C7: 0 | D7: 0 | E7: 0.5 | F7: 0.5 | G7: 1
B8: 1.2 (Target) | C8: 1 | D8: 1
B9: 1.2 (Actual) | C9: 1 | D9: 1
A10: Action 2 | B10: 2.1 (Target) | D10: 1 | E10: 1 | F10: 1
B11: 2.1 (Actual) | D11: 0 | E11: 0 | F11: 1 | G11: 1
B12: 2.2 (Target) | F12: 1 | G12: 1 | J12: 1
B13: 2.2 (Actual) | F13: 0 | G13: 0.5 | H13: 0.5 | I13: 1 | J13: 1
B14: 2.3 (Target) | E14: 1 | I14: 1 | J14: 1
B15: 2.3 (Actual) | E15: 1 | I15: 0.5 | J15: 0.5 | K15: 1
A16: Action 3 | B16: 3.1 (Target) | H16: 1 | I16: 1 | J16: 1 | K16: 1 | L16: 1
B17: 3.1 (Actual) | H17: 0.5 | I17: 0.5 | J17: 1 | K17: 1 | L17: 1 | M17: 1
B18: 3.2 (Target) | L18: 1 | M18: 1 | N18: 1
B19: 3.2 (Actual) | L19: 0.5 | M19: 1 | N19: 1
A20: Notes: Actions and subactions can be taken from the proposal, zero for not commenced, 0.5 commenced, 1.0 completed
A23: Action | B23: % achievement | C23: 2018 | G23: 2019 | K23: 2020
C24: Q1 | D24: Q2 | E24: Q3 | F24: Q4 | G24: Q1 | H24: Q2 | I24: Q3 | J24: Q4 | K24: Q1 | L24: Q2 | M24: Q3 | N24: Q4
A25: Action 1 | B25: 1.1 | C25: =C7/C6 -> 0 | D25: =D7/D6 -> 
B26: 1.2 (Target) | C26: =C9/C8 -> 1 | D26: =D9/D8 -> 1
A27: Action 2 | B27: 2.1 (Target) | C27: =C11/C10 ->  | D27: =D11/D10 -> 0 | E27: 0 | F27: 1
B28: 2.2 (Target) | C28: =C13/C12 ->  | D28: =D13/D12 ->  | F28: 0 | G28: 0.5 | J28: 1
B29: 2.3 (Target) | C29: =C15/C14 ->  | D29: =D15/D14 ->  | E29: 1 | I29: 0.5 | J29: 0.5
A30: Action 3 | B30: 3.1 (Target) | C30: =C17/C16 ->  | D30: =D17/D16 ->  | H30: 0.5 | I30: 0.5 | J30: 1 | K30: 1 | L30: 1
B31: 3.2 (Target) | C31: =C19/C18 ->  | D31: =D19/D18 ->  | L31: 0.5 | M31: 1 | N31: 1
A32: % achievement
A33: Percentage achievement will be automatically calculated and presented in the above table. Completing a task according to the plan is important as late will not contribute to the % achievement

Sheet Table 3
A1: Table 3. Disbursement Plan (in LKR)
A4: Date | B4: PP revision | C4: GOODS | D4: WORKS | E4: CONSULTANCY | F4: NON-CONSULTANCY | G4: OVAA | H4: TOTAL
A5: 2018-01-01 | B5: Original procurement plan | C5: =Goods!G26 -> 3300000 | D5: =Works!F22 -> 2400000 | E5: ='Consultant Services'!G22 -> 650000 | F5: ='Non-Consultant Services'!F20 -> 1250000 | G5: =OVAA!I15 -> 2400000 | H5: =SUM(C5:G5) -> 10000000
B6: Percentage | C6: =C5/H5 -> 0.33 | D6: =D5/H5 -> 0.24 | E6: =E5/H5 -> 0.065 | F6: =F5/H5 -> 0.125 | G6: =G5/H5 -> 0.24 | H6: =SUM(C6:G6) -> 1
B7: Maximum % | C7: 0.9 | D7: 0.5 | E7: 0.2 | F7: 0.2 | G7: 0.9
A8: 1 | B8: 2 | C8: 3 | D8: 4 | E8: 5 | F8: 6 | G8: 7 | H8: 8
B9: Month | C9: Goods | D9: Works | E9: Consultancy | F9: Non-consultancy | G9: OVAA | H9: Total
B10: 2018-01-01 | F10: 500000 | G10: =OVAA!I16 -> 0 | H10: =SUM(Table2[[#This Row],[Goods]:[OVAA]]) -> 500000
B11: 2018-02-01 | G11: =OVAA!I17 -> 130000 | H11: =SUM(Table2[[#This Row],[Goods]:[OVAA]]) -> 130000
B12: 2018-03-01 | G12: =OVAA!I18 -> 0 | H12: =SUM(Table2[[#This Row],[Goods]:[OVAA]]) -> 0
B13: 2018-04-01 | G13: =OVAA!I19 -> 800000 | H13: =SUM(Table2[[#This Row],[Goods]:[OVAA]]) -> 800000
B14: 2018-05-01 | G14: =OVAA!I20 -> 0 | H14: =SUM(Table2[[#This Row],[Goods]:[OVAA]]) -> 0
B15: 2018-06-01 | D15: 1700000 | G15: =OVAA!I21 -> 0 | H15: =SUM(Table2[[#This Row],[Goods]:[OVAA]]) -> 1700000
B16: 2018-07-01 | C16: 650000 | G16: =OVAA!I22 -> 0 | H16: =SUM(Table2[[#This Row],[Goods]:[OVAA]]) -> 650000
B17: 2018-08-01 | C17: 1150000 | E17: 200000 | G17: =OVAA!I23 -> 0 | H17: =SUM(Table2[[#This Row],[Goods]:[OVAA]]) -> 1350000
B18: 2018-09-01 | F18: 550000 | G18: =OVAA!I24 -> 0 | H18: =SUM(Table2[[#This Row],[Goods]:[OVAA]]) -> 550000
B19: 2018-10-01 | E19: 350000 | G19: =OVAA!I25 -> 0 | H19: =SUM(Table2[[#This Row],[Goods]:[OVAA]]) -> 350000
B20: 2018-11-01 | G20: =OVAA!I26 -> 0 | H20: =SUM(Table2[[#This Row],[Goods]:[OVAA]]) -> 0
B21: 2018-12-01 | C21: 1200000 | D21: 450000 | G21: =OVAA!I27 -> 0 | H21: =SUM(Table2[[#This Row],[Goods]:[OVAA]]) -> 1650000
C22: =SUM(Table2[Goods]) -> 3000000 | D22: =SUM(Table2[Works]) -> 2150000 | E22: =SUM(Table2[Consultancy]) -> 550000 | F22: =SUM(Table2[Non-consultancy]) -> 1050000 | G22: =SUM(Table2[OVAA]) -> 930000 | H22: =SUM(Table2[Total]) -> 7680000

Sheet Goods
A1: PROCUREMENT PLAN FOR GOODS AHEAD – ICE – Faculty of ……., University of …….
A2: Country/Borrower: Government of Sri Lanka | E2: Government of Sri Lanka
A3: Project Name: Accelerating Higher Education Expansion and Development (AHEAD) | E3: Credit/Grant #:4686 LK
A4: Implementing Agency: Univeristy of …………….
A5: GPN # and Date Published:
A6: Original Plan Approved Date (at Appraisal/Negotiations) :
A7: Update as of :
A8: * For post review, fill in columns 1 to 8, 11 & 12, 14 to 17, and 19 to 22
A9: ** Indicate extensions/modifications etc.
A10: Serial No. | B10: File No. | C10: Package No. | D10: Description | E10: Method of Procurement | F10: Quantity (Number) | G10: Estimated Cost (Million) | I10: Prior/ Post Review by Bank* | J10: Stage | K10: Submit DBD with IFB for Bank's N/O | L10: Publish IFB in National newspapers and UNDB | M10: Deadline for submission of bids | N10: Submit BER for Bank's N/O | O10: Signing of contract | R10: Name of Contractor/ nationality | S10: Submit signed contract copy to Bank | T10: Publish contract award notice in UNDB & National newspapers | U10: Completion of contract | X10: Expenditure incurred to date | Y10: Status/Remarks**
G11: LKR | H11: USD | O11: Date | P11: Currency | Q11: Amount | V11: Month of completion | W11: Year of completion | Z11: Savings
A12: 1 | B12: 2 | C12: 3 | D12: 4 | E12: 5 | F12: 6 | G12: 7 | H12: 8 | I12: 9 | J12: 10 | K12: 11 | L12: 12 | M12: 13 | N12: 14 | O12: 15 | P12: 16 | Q12: 17 | R12: 18 | S12: 19 | T12: 20 | U12: 21 | V12: 22 | W12: 23 | X12: 24 | Y12: 25 | Z12: 26
A13: 1 | B13: AHEAD/RA3/ICE/PDN/SCI/GOODs/01 | D13: Supply & installation of …………………… | E13: NS | F13: 25 | G13: 1200000 | H13: NA | I13: Post | J13: Planned | K13: NA | L13: NA | M13: 2018-05-02 | N13: NA | O13: NA | P13: Rs | Q13: 1110000 | R13: ………. International (Pte) Ltd | S13: NA | T13: NA | U13: 2018-06-30 | Y13: deduction due to late delivery
J14: Actual | M14: 2018-08-29 | U14: 2018-12-24 | V14: 12 | W14: 2018 | X14: 1100000
A15: 2 | B15: AHEAD/RA3/ICE/PDN/SCI/GOODs/02 | D15: Supply & delivery of ………………….. | E15: DC | F15: 1 | G15: 1100000 | H15: NA | I15: post | J15: Planned | K15: NA | L15: NA | M15: 2018-06-06 | N15: NA | O15: NA | P15: Rs | Q15: 1000000 | R15: ……. Holdings (Pvt) Ltd | S15: NA | T15: NA | U15: 2018-08-30
J16: Actual | M16: 2018-06-27 | U16: 2018-08-13 | V16: 8 | W16: 2018 | X16: 1000000
A17: 4 | B17: AHEAD/RA3/ICE/PDN/SCI/GOODs/03 | E17: NS | G17: 400000 | H17: NA | I17: Post | J17: Planned | K17: NA | L17: NA | N17: NA | O17: NA | P17: Rs | S17: NA | T17: NA | U17: 2018-01-30
J18: Actual | U18: 2018-07-11 | V18: 7 | W18: 2018 | X18: 350000
A19: 5 | B19: AHEAD/RA3/ICE/PDN/SCI/GOODs/04 | E19: NS | G19: 200000 | H19: NA | I19: Post | J19: Planned | K19: NA | L19: NA | N19: NA | O19: NA | P19: Rs | S19: NA | T19: NA | U19: 2018-03-30
J20: Actual | U20: 2018-08-12 | V20: 8 | W20: 2018 | X20: 150000
A21: 6 | B21: AHEAD/RA3/ICE/PDN/SCI/GOODs/05 | E21: NS | G21: 100000 | I21: Post | J21: Planned | K21: NA | L21: NA | N21: NA | O21: NA | P21: Rs | S21: NA | T21: NA | U21: 2018-04-30
J22: Actual | U22: 2018-12-12 | V22: 12 | W22: 2018 | X22: 100000
A23: 7 | B23: AHEAD/RA3/ICE/PDN/SCI/GOODs/06 | E23: NS | G23: 300000 | H23: NA | I23: Post | J23: Planned | K23: NA | L23: NA | N23: NA | O23: NA | P23: Rs | S23: NA | T23: NA | U23: 2018-07-30
J24: Actual | U24: 2018-07-10 | V24: 7 | W24: 2018 | X24: 300000
G26: =SUM(G13:G25) -> 3300000 | X26: =SUM(X13:X25) -> 3000000
B34: Notes: The total "estimated cost" and the total "expenditure incurred to date" is linked to the Table 3 and 4. The first PP has no colors, during implementation use the colours below
D35: Completed
D36: Cancelled
D37: Ongoing

Sheet Works
A1: PROCUREMENT PLAN FOR WORKS AHEAD – ICE – Faculty of ……., University of …….
A3: Country/Borrower: | E3: Government of Sri Lanka
A4: Project Name: Accelerating Higher Education Expansion and Development (AHEAD) | I4: Credit/Grant #:4686 LK
A5: Implementing Agency: Univeristy of ……………..
A6: GPN # and Date Published:
A7: Original Plan Approved Date (at Appraisal/Negotiations) :
A8: Update as of :
A9: * For post review, fill in columns 1 to 7, 10 & 11, 13 to 16, and 18 to 21
A10: ** Indicate extensions/modifications etc.
A11: Serial No. | B11: File No. | C11: Package No. | D11: Description | E11: Method of Procurement | F11: Estimated Cost (Million) | H11: Prior/Post Review by Bank* | I11: Stage | J11: Submit DBD with IFB for Bank's N/O | K11: Publish IFB in National newspapers and UNDB | L11: Deadline for submission of bids | M11: Submit BER for Bank's N/O | N11: Signing of contract | Q11: Name of Contractor/ Nationality | R11: Submit signed contract copy to Bank | S11: Publish contract award notice in UNDB & National newspapers | T11: Completion of contract | W11: Expenditure incurred to date | X11: Status/Remarks**
F12: LKR | G12: USD | N12: Date | O12: Currency | P12: Amount | U12: Month of completion | V12: Year of completion | Y12: Savings
A13: 1 | B13: 2 | C13: 3 | D13: 4 | E13: 5 | F13: 6 | G13: 7 | H13: 8 | I13: 9 | J13: 10 | K13: 11 | L13: 12 | M13: 13 | N13: 14 | O13: 15 | P13: 16 | Q13: 17 | R13: 18 | S13: 19 | T13: 20 | U13: 21 | V13: 22 | W13: 23 | X13: 24 | Y13: 25
A14: 1 | B14: AHEAD/RA3/ICE/PDN/SCI/WORKs/01 | D14: Refurbishment of the …………………….. | E14: NS | F14: 850000 | G14: NA | H14: Post | I14: Planned | J14: NA | K14: NA | L14: 2018-01-30 | M14: NA | N14: 2018-04-30 | O14: Rs | P14: 800000 | Q14: ………………….. (Pvt) Ltd | R14: NA | S14: NA | T14: 2018-05-30
I15: Actual | L15: 2018-02-19 | N15: 2018-05-21 | T15: 2018-06-20 | U15: 6 | V15: 2018 | W15: 800000
A16: 2 | B16: AHEAD/RA3/ICE/PDN/SCI/WORKs/02 | D16: Construction of the …………………….. | E16: NS | F16: 1000000 | G16: NA | H16: Post | I16: Planned | J16: NA | K16: NA | L16: 2018-01-30 | M16: NA | N16: 2018-04-30 | O16: Rs | P16: 1000000 | Q16: ………………….. (Pvt) Ltd | R16: NA | S16: NA | T16: 2018-05-30
I17: Actual | L17: 2018-02-19 | N17: 2018-05-21 | T17: 2018-06-15 | U17: 6 | V17: 2018 | W17: 900000
A18: 3 | B18: AHEAD/RA3/ICE/PDN/SCI/WORKs/03 | D18: Refurbishment of the …………………….. | E18: NS | F18: 50000 | G18: NA | H18: Post | I18: Planned | J18: NA | K18: NA | L18: 2018-08-30 | M18: NA | N18: 2018-10-30 | O18: Rs | P18: 50000 | Q18: ………………….. (Pvt) Ltd | R18: NA | S18: NA | T18: 2018-10-30
I19: Actual | L19: 2018-08-19 | N19: 2018-10-21 | T19: 2018-12-20 | U19: 12 | V19: 2018 | W19: 50000
A20: 4 | B20: AHEAD/RA3/ICE/PDN/SCI/WORKs/04 | D20: Construction of the …………………….. | E20: NS | F20: 500000 | G20: NA | H20: Post | I20: Planned | J20: NA | K20: NA | L20: 2018-08-30 | M20: NA | N20: 2018-10-30 | O20: Rs | P20: 400000 | Q20: ………………….. (Pvt) Ltd | R20: NA | S20: NA | T20: 2018-11-30
I21: Actual | L21: 2018-08-19 | N21: 2018-10-21 | T21: 2018-12-15 | U21: 12 | V21: 2018 | W21: 400000
F22: =SUM(F14:F21) -> 2400000 | W22: =SUM(W14:W21) -> 2150000 | Y22: =SUM(Y14:Y17) -> 0
B26: Notes: The total "estimated cost" and the total "expenditure incurred to date" is linked to the Table 3 and 4. The first PP has no colors, during implementation use the colours below
D27: Completed
D28: Cancelled
D29: Ongoing

Sheet Consultant Services
A1: PROCUREMENT PLAN FOR CONSULTANT SERVICES AHEAD – ICE – Faculty of ……., University of …….
A3: Country/Borrower: | E3: Government of Sri Lanka
A4: Project Name: Accelerating Higher Education Expansion and Development (AHEAD) | G4: Credit/Grant #:4686 LK
A5: Implementing Agency: Univeristy of …………………..
A6: GPN # and Date Published:
A7: Original Plan Approved Date (at Appraisal/Negotiations) :
A8: Update as of :
A9: * For post review, fill in columns 1 to 8, 10, 12 & 13, 15, 17 to 20, and 22 to 25
A10: ** Indicate extensions/modifications etc.
A11: Serial no. | B11: File No. | C11: RFP No. | D11: Description | E11: Method of Selection | F11: Lumpsum/Time Based | G11: Estimated Cost (Million) | I11: Prior/post review by Bank* | J11: Stage | K11: Publish Notice for EOI | L11: Submit shortlist and draft RFP for Bank's N/O | M11: Issue RFP to shortlisted firms | N11: Deadline for submission of proposals | O11: Submit TER for Bank's N/O | P11: Opening of financial proposals | Q11: Submit CER & initialed draft negotiated contract for Bank's N/O | R11: Signing of Contract | U11: Name/nationality of the consultant | V11: Submit signed contract copy to Bank | W11: Publish Contract Award in UNDB & National newspapers | X11: Contract Completion | AA11: Expenditure incurred to date | AB11: Status/Remarks **
G12: LKR | H12: USD | R12: Date | S12: Currency | T12: Value | Y12: Month of completion | Z12: Year of completion | AC12: Savings
A13: 1 | B13: 2 | C13: 3 | D13: 4 | E13: 5 | F13: 6 | G13: 7 | H13: 8 | I13: 9 | J13: 10 | K13: 11 | L13: 12 | M13: 13 | N13: 14 | O13: 15 | P13: 16 | Q13: 17 | R13: 18 | S13: 19 | T13: 20 | U13: 21 | V13: 22 | W13: 23 | X13: 24 | Y13: 25 | Z13: 26 | AA13: 27 | AB13: 28 | AC13: 29
A14: 1 | B14: AHEAD/RA3/ICE/PDN/SCI/CON/01 (AHEAD/RA3/ICE/PDN/SCI/CON/TOR 01) | D14: Consultancy on designing the ……. | E14: IC-C | F14: LS | G14: 100000 | H14: NA | I14: Post | J14: Planned | K14: 2018-04-01 | L14: NA | M14: NA | N14: 2018-04-22 | O14: NA | P14: NA | Q14: NA | R14: 2018-05-02 | S14: Rs | T14: 100000 | U14: Mr. X.X. Bandara | V14: NA | W14: NA | X14: 2018-07-30
J15: Actual | K15: 2018-05-11 | N15: 2018-06-15 | R15: 2018-07-01 | X15: 2018-08-30 | Y15: 8 | Z15: 2018 | AA15: 100000
A16: 2 | B16: AHEAD/RA3/ICE/PDN/SCI/CON/02 (AHEAD/RA3/ICE/PDN/SCI/CON/TOR 02) | D16: Consultancy on legal & administrative advice | E16: IC-C | F16: TB | G16: 150000 | H16: NA | I16: Post | J16: Planned | K16: 2018-04-01 | L16: NA | M16: NA | N16: 2018-04-22 | O16: NA | P16: NA | Q16: NA | R16: 2018-05-02 | S16: Rs | T16: 100000 | U16: Mr. X.Y. De Silva | V16: NA | W16: NA | X16: 2018-06-28
J17: Actual | K17: 2018-04-18 | N17: 2018-04-29 | R17: 2018-05-17 | X17: 2018-08-16 | Y17: 8 | Z17: 2018 | AA17: 100000
A18: 4 | B18: AHEAD/RA3/ICE/PDN/SCI/CON/03 (AHEAD/RA3/ICE/PDN/SCI/CON/TOR 03) | G18: 200000 | H18: NA | J18: Planned | L18: NA | M18: NA | O18: NA | P18: NA | Q18: NA | S18: Rs | V18: NA | W18: NA
J19: Actual | X19: 2018-10-30 | Y19: 10 | Z19: 2018 | AA19: 150000
A20: 5 | B20: AHEAD/RA3/ICE/PDN/SCI/CON/04 (AHEAD/RA3/ICE/PDN/SCI/CON/TOR 04) | G20: 200000 | H20: NA | J20: Planned | L20: NA | M20: NA | O20: NA | P20: NA | Q20: NA | S20: Rs | V20: NA | W20: NA
J21: Actual | X21: 2018-10-30 | Y21: 10 | Z21: 2018 | AA21: 200000
G22: =SUM(G14:G21) -> 650000 | AA22: =SUM(AA14:AA21) -> 550000

Sheet Non-Consultant Services
A1: PROCUREMENT PLAN FOR NON-CONSULTANT SERVICES AHEAD – ICE – Faculty of ……., University of …….
A3: Country/Borrower: Government of Sri Lanka
A4: Project Name: Accelerating Higher Education Expansion and Development (AHEAD) | H4: Credit/Grant #:4686 LK
A5: Implementing Agency: University of …………………
A6: GPN # and Date Published:
A7: Original Plan Approved Date (at Appraisal/Negotiations) :
A8: Update as of :
A9: * For post review, fill in columns 1 to 7, 10 & 11, 13 to 16, and 18 to 21
A10: ** Indicate extensions/modifications etc.
A11: Serial No. | B11: File No. | C11: Package No. | D11: Description | E11: Method of Procurement | F11: Estimated Cost (Million) | H11: Prior/post review by Bank* | I11: Stage | J11: Submit DBD with IFB for Bank's N/O | K11: Publish IFB in National newspapers and UNDB | L11: Deadline for submission of bids | M11: Submit BER for Bank's N/O | N11: Signing of contract | Q11: Name & Nationality of contractor | R11: Submit signed contract copy to Bank | S11: Publish contract award notice in UNDB & National newspapers | T11: Completion of contract | W11: Expenditure incurred to date | X11: Status/Remarks
F12: LKR | G12: USD | N12: Date | O12: Currency | P12: Value | U12: Month of completion | V12: Year of completion | Y12: Savings
A13: 1 | B13: 2 | C13: 3 | D13: 4 | E13: 5 | F13: 6 | G13: 7 | H13: 8 | I13: 9 | J13: 10 | K13: 11 | L13: 12 | M13: 13 | N13: 14 | O13: 15 | P13: 16 | Q13: 17 | R13: 18 | S13: 19 | T13: 20 | U13: 21 | V13: 22 | W13: 23 | X13: 24 | Y13: 25
A14: 1 | B14: AHEAD/RA3/ICE/PDN/SCI/NCON/01 | D14: Drilling | E14: NS | F14: 600000 | G14: NA | I14: Planned | J14: NA | K14: NA | L14: 2018-07-20 | M14: NA | N14: NA | O14: Rs | P14: 550000 | Q14: X.X. P. (Pvt) Ltd | R14: NA | S14: NA | T14: 2018-09-30 | Y14: =F14-W15 -> 50000
I15: Actual | L15: 2018-08-26 | T15: 2018-09-30 | U15: 9 | V15: 2018 | W15: 550000
A16: 2 | B16: AHEAD/RA3/ICE/PDN/SCI/NCON/02 | D16: Mapping | E16: NS | F16: 200000 | G16: NA | I16: Planned | J16: NA | K16: NA | L16: 2018-01-30 | M16: NA | N16: NA | O16: Rs | P16: 150000 | Q16: …………... Enterprises | R16: NA | S16: NA | T16: 2018-02-28 | Y16: =F16-W17 -> 50000
I17: Actual | L17: 2018-01-02 | T17: 2018-01-25 | U17: 1 | V17: 2018 | W17: 150000
A18: 3 | B18: AHEAD/RA3/ICE/PDN/SCI/NCON/03 | E18: NS | F18: 450000 | G18: NA | I18: Planned | J18: NA | K18: NA | L18: 2018-01-30 | M18: NA | N18: NA | O18: Rs | P18: 400000 | Q18: …… | R18: NA | S18: NA | T18: 2018-02-28 | Y18: =F18-W19 -> 100000
I19: Actual | L19: 2018-01-02 | T19: 2018-01-10 | U19: 1 | V19: 2018 | W19: 350000
F20: =SUM(F14:F19) -> 1250000 | W20: =SUM(W14:W19) -> 1050000 | Y20: =SUM(Y14:Y19) -> 200000

Sheet OVAA
A1: PLAN FOR OVAA PAYMENTS of AHEAD – ICE – Faculty of ……., University of …….
A3: Country/Borrower: Government of Sri Lanka
A4: Project Name: Accelerating Higher Education Expansion and Development (AHEAD) | I4: Credit/Grant #:4686 LK
A5: Implementing Agency: University of …………………
A6: GPN # and Date Published:
A7: Original Plan Approved Date (at Appraisal/Negotiations) :
A8: Update as of :
B12: Description | C12: Obtaining services of research assistant | D12: Conducting workshops | E12: Repair of an equipment | F12: Purchase of chemicals | G12: Bulk allocation for year 2 | H12: Bulk allocation for year 3 | I12: Total OVAA/Total Expenditure for the month
B13: Column1 | C13: Column2 | D13: Column3 | E13: Column4 | F13: Column5 | G13: Column6 | H13: Column7 | I13: Column8
B14: OVAA number | C14: AHEAD/RA3/ICE/PDN/SCI/OVAA 01 | D14: AHEAD/RA3/ICE/PDN/SCI/OVAA 02 | E14: AHEAD/RA3/ICE/PDN/SCI/OVAA 03 | F14: AHEAD/RA3/ICE/PDN/SCI/OVAA 04 | I14: =SUM(Table3[[#This Row],[Column2]:[Column7]]) -> 0
B15: Estimated cost (LKR) | C15: 1000000 | D15: 100000 | E15: 500000 | F15: 800000 | I15: =SUM(Table3[[#This Row],[Column2]:[Column7]]) -> 2400000
B16: 2018-01-01 | I16: =SUM(Table3[[#This Row],[Column2]:[Column7]]) -> 0
B17: 2018-02-01 | D17: 30000 | E17: 100000 | I17: =SUM(Table3[[#This Row],[Column2]:[Column7]]) -> 130000
B18: 2018-03-01 | I18: =SUM(Table3[[#This Row],[Column2]:[Column7]]) -> 0
B19: 2018-04-01 | C19: 600000 | F19: 200000 | I19: =SUM(Table3[[#This Row],[Column2]:[Column7]]) -> 800000
B20: 2018-05-01 | I20: =SUM(Table3[[#This Row],[Column2]:[Column7]]) -> 0
B21: 2018-06-01 | I21: =SUM(Table3[[#This Row],[Column2]:[Column7]]) -> 0
B22: 2018-07-01 | I22: =SUM(Table3[[#This Row],[Column2]:[Column7]]) -> 0
B23: 2018-08-01 | I23: =SUM(Table3[[#This Row],[Column2]:[Column7]]) -> 0
B24: 2018-09-01 | I24: =SUM(Table3[[#This Row],[Column2]:[Column7]]) -> 0
B25: 2018-10-01 | I25: =SUM(Table3[[#This Row],[Column2]:[Column7]]) -> 0
B26: 2018-11-01 | I26: =SUM(Table3[[#This Row],[Column2]:[Column7]]) -> 0
B27: 2018-12-01 | I27: =SUM(Table3[[#This Row],[Column2]:[Column7]]) -> 0
B28: Total expenditure | I28: =SUM(I16:I27) -> 930000
I29: =I15-I28 -> 1470000
B30: Savings | C30: =C15-(SUM(C16:C27)) -> 400000 | D30: =D15-(SUM(D16:D27)) -> 70000 | E30: =E15-(SUM(E16:E27)) -> 400000 | F30: =F15-(SUM(F16:F27)) -> 600000 | I30: =SUM(C30:H30) -> 1470000
